lending/lending_fUSD_20240401
["ID","MTS","AMOUNT","RATE_DAILY","PERIOD"]
[321240149,1712009460612,-500.0,0.00056438,120]
[321240150,1712009460622,-541.69,0.00056438,120]
[321240151,1712009460631,-2967.44,0.00056438,120]
[321240152,1712009460640,-500.0,0.00056438,120]
[321240153,1712009460649,-500.0,0.00056438,120]
[321240154,1712009460658,-1260.46,0.00056438,120]
[321240155,1712009460668,-500.0,0.00056438,120]
[321240156,1712009460677,-1749.5,0.00056438,120]
[321240157,1712009460686,-540.76,0.00056438,120]
[321240158,1712009460695,-1186.18,0.00056438,120]
[321240159,1712009460704,-910.97,0.00056438,120]
[321240160,1712009460713,-500.0,0.00056438,120]
[321240161,1712009460722,-654.57,0.00056438,120]
[321240162,1712009460732,-1734.15,0.00056438,120]
[321240163,1712009460741,-932.52,0.00056438,120]
[321240164,1712009460753,-500.0,0.00056438,120]
[321240165,1712009460762,-500.0,0.00056438,120]
[321240166,1712009460771,-622.78,0.00056438,120]
[321240167,1712009460780,-534.95,0.00056438,120]
[321240168,1712009460790,-537.06,0.00056438,120]
[321240169,1712009460799,-1828.04,0.00056438,120]
[321240170,1712009460808,-451.2,0.00056438,120]
[321240171,1712009460819,-500.0,0.00056438,120]
[321240172,1712009460830,-644.85,0.00056438,120]
[321240173,1712009460840,-500.0,0.00056438,120]
[321240174,1712009460849,-627.7,0.00056438,120]
[321240175,1712009460859,-500.0,0.00056438,120]
[321240176,1712009460868,-532.88,0.00056438,120]
[321240177,1712009460878,-500.0,0.00056438,120]
[321240178,1712009460887,-500.0,0.00056438,7]
[321240179,1712009460896,-500.0,0.00056438,120]
[321240180,1712009460905,-500.0,0.00056438,120]
[321240181,1712009460915,-500.0,0.00056438,120]
[321240182,1712009460924,-1511.02,0.00056438,120]
[321240183,1712009460933,-500.0,0.00056438,120]
[321240184,1712009460942,-500.0,0.00056438,120]
[321240185,1712009460952,-500.0,0.00056438,120]
[321240186,1712009460961,-525.21,0.00056438,120]
[321240187,1712009460970,-539.45,0.00056438,120]
[321240188,1712009460980,-500.0,0.00056438,120]
[321240189,1712009460989,-1184.28,0.00056438,120]
[321240190,1712009460998,-500.0,0.00056438,120]
[321240191,1712009461007,-545.44,0.00056438,120]
[321240192,1712009461017,-500.0,0.00056438,120]
[321240193,1712009461026,-5068.45846466,0.000566,2]
[321240194,1712009461036,-1103.94192926,0.00056656,2]
[321240195,1712009461045,-513.78160399,0.00056705,5]
[321240196,1712009461054,-538.77,0.00056711,120]
[321240197,1712009461063,-500.0,0.00056711,120]
[321240198,1712009461072,-1155.33,0.00056711,120]
[321240199,1712009461081,-1097.78,0.00056711,120]
[321240200,1712009461090,-662.87,0.00056711,120]
[321240201,1712009461099,-543.14,0.00056711,120]
[321240202,1712009461108,-1265.41,0.00056711,120]
[321240203,1712009461118,-500.0,0.00056711,120]
[321240204,1712009461127,-500.0,0.00056711,120]
[321240205,1712009461136,-3000.0,0.00056711,120]
[321240206,1712009461146,-1148.89,0.00056711,120]
[321240207,1712009461157,-500.0,0.00056711,120]
[321240208,1712009461167,-517.77,0.00056711,120]
[321240209,1712009461176,-500.0,0.00056711,120]
[321240210,1712009461185,-500.0,0.00056711,120]
[321240211,1712009461195,-500.0,0.00056711,120]
[321240212,1712009461205,-500.0,0.00056711,120]
[321240213,1712009461215,-546.82,0.00056711,120]
[321240214,1712009461224,-527.78,0.00056711,120]
[321240215,1712009461235,-229.7,0.00056712,120]
[321240216,1712009461245,-500.0,0.00056712,120]
[321240217,1712009461255,-500.0,0.00056712,120]
[321240218,1712009461265,-324.68,0.00056712,120]
[321240219,1712009461274,-500.0,0.00056712,120]
[321240220,1712009461284,-500.0,0.00056712,120]
[321240221,1712009461294,-500.0,0.00056712,120]
[321240222,1712009461304,-500.0,0.00056712,120]
[321240223,1712009461313,-500.0,0.00056712,120]
[321240224,1712009461323,-500.0,0.00056712,120]
[321240225,1712009461332,-500.0,0.00056712,120]
[321240226,1712009461342,-500.0,0.00056712,120]
[321240227,1712009461352,-500.0,0.00056712,120]
[321240228,1712009461362,-500.0,0.00056712,120]
[321240229,1712009461372,-500.0,0.00056712,120]
[321240230,1712009461382,-500.0,0.00056712,120]
[321240231,1712009461391,-500.0,0.00056712,120]
[321240232,1712009461401,-500.0,0.00056712,120]
[321240233,1712009461410,-500.0,0.00056712,30]
[321240234,1712009461419,-517.14,0.00056712,120]
[321240235,1712009461429,-500.0,0.00056712,120]
[321240236,1712009461438,-500.0,0.00056712,120]
[321240237,1712009461447,-213.36,0.00056712,120]
[321240238,1712009461457,-500.0,0.00056712,120]
[321240239,1712009461466,-500.0,0.00056712,120]
[321240240,1712009461475,-500.0,0.00056712,120]
[321240241,1712009461484,-551.71,0.00056712,120]
[321240242,1712009461494,-500.0,0.00056712,120]
[321240243,1712009461503,-500.0,0.00056712,120]
[321240244,1712009461513,-500.0,0.00056712,120]
[321240245,1712009461522,-500.0,0.00056712,120]
[321240246,1712009461531,-500.0,0.00056712,120]
[321240247,1712009461541,-500.0,0.00056712,120]
[321240248,1712009461550,-500.0,0.00056712,120]
[321240249,1712009461560,-500.0,0.00056712,120]
[321240250,1712009461569,-509.34,0.00056712,120]
[321240251,1712009461578,-500.0,0.00056712,120]
[321240252,1712009461588,-150.0,0.00056712,120]
[321240253,1712009461597,-500.0,0.00056712,120]
[321240254,1712009461607,-500.0,0.00056712,120]
[321240255,1712009461616,-290.58,0.00056712,120]
[321240256,1712009461626,-597.32,0.00056712,120]
[321240257,1712009461636,-500.0,0.00056712,120]
[321240258,1712009461645,-500.0,0.00056712,120]
[321240259,1712009461654,-500.0,0.00056712,120]
[321240260,1712009461664,-500.0,0.00056712,120]
[321240261,1712009461674,-500.0,0.00056712,120]
[321240262,1712009461683,-500.0,0.00056712,120]
[321240263,1712009461693,-500.0,0.00056712,120]
[321240264,1712009461702,-500.0,0.00056712,120]
[321240265,1712009461711,-500.0,0.00056712,120]
[321240266,1712009461720,-551.89,0.00056712,7]
[321240267,1712009461729,-506.2,0.00056712,120]
[321240268,1712009461738,-500.0,0.00056712,120]
[321240269,1712009461751,-500.0,0.00056712,120]
[321240270,1712009461760,-500.0,0.00056712,120]
[321240271,1712009461769,-500.0,0.00056712,120]
[321240272,1712009461778,-500.0,0.00056712,120]
[321240273,1712009461788,-222.62,0.00056712,120]
[321240274,1712009461797,-500.0,0.00056712,120]
[321240275,1712009461806,-567.46,0.00056712,120]
[321240276,1712009461816,-500.0,0.00056712,120]
[321240277,1712009461827,-2940.4,0.00056712,120]
[321240278,1712009461837,-500.0,0.00056712,120]
[321240279,1712009461846,-9617.67,0.00056712,120]
[321240280,1712009461855,-500.0,0.00056712,120]
[321240281,1712009461864,-500.0,0.00056712,120]
[321240282,1712009461874,-3963.56,0.00056712,120]
[321240283,1712009461883,-500.0,0.00056712,120]
[321240284,1712009461893,-1592.94,0.00056712,120]
[321240285,1712009461902,-1171.94,0.00056712,120]
[321240286,1712009461911,-500.0,0.00056712,120]
[321240287,1712009461920,-519.04,0.00056712,120]
[321240288,1712009461930,-500.0,0.00056712,120]
[321240289,1712009461940,-500.0,0.00056712,120]
[321240290,1712009461949,-500.0,0.00056712,120]
[321240291,1712009461958,-500.0,0.00056712,120]
[321240292,1712009461967,-649.04,0.00056712,120]
[321240293,1712009461977,-500.0,0.00056712,120]
[321240294,1712009461986,-735.74,0.00056712,120]
[321240295,1712009461995,-2396.91,0.00056712,120]
[321240296,1712009462005,-710.69,0.00056712,120]
[321240297,1712009462015,-298.58,0.00056712,120]
[321240298,1712009462024,-500.0,0.00056712,120]
[321240299,1712009462033,-5307.53,0.00056712,120]
[321240300,1712009462042,-500.0,0.00056712,120]
[321240301,1712009462051,-509.91,0.00056712,120]
[321240302,1712009462061,-674.12,0.00056712,120]
[321240303,1712009462071,-500.0,0.00056712,120]
[321240304,1712009462081,-7130.05,0.00056712,120]
[321240305,1712009462090,-500.0,0.00056712,120]
[321240306,1712009462195,-784.39,0.00056712,120]
[321240307,1712009462205,-500.0,0.00056712,120]
[321240308,1712009462216,-583.87,0.00056712,120]
[321240309,1712009462225,-683.13,0.00056712,120]
[321240310,1712009462236,-8568.4,0.00056712,120]
[321240311,1712009462245,-500.0,0.00056712,120]
[321240312,1712009462256,-828.92,0.00056712,120]
[321240313,1712009462265,-718.19,0.00056712,120]
[321240314,1712009462274,-500.0,0.00056712,120]
[321240315,1712009462284,-506.56,0.00056712,120]
[321240316,1712009462294,-524.83,0.00056712,120]
[321240317,1712009462304,-644.16,0.00056712,21]
[321240318,1712009462315,-1373.74,0.00056712,120]
[321240319,1712009462327,-526.38,0.00056712,120]
[321240320,1712009462337,-594.12,0.00056712,120]
[321240321,1712009462347,-610.54,0.00056712,120]
[321240322,1712009462357,-595.4,0.00056712,120]
[321240323,1712009462368,-500.0,0.00056712,120]
[321240324,1712009462377,-1259.72,0.00056712,120]
[321240325,1712009462387,-500.0,0.00056712,120]
[321240326,1712009462398,-500.0,0.00056712,120]
[321240327,1712009462409,-674.09,0.00056712,120]
[321240328,1712009462420,-500.0,0.00056712,120]
[321240329,1712009462430,-500.0,0.00056712,120]
[321240330,1712009462440,-476.78,0.00056712,120]
[321240331,1712009462451,-1198.7,0.00056712,120]
[321240332,1712009462462,-500.0,0.00056712,120]
[321240333,1712009462472,-662.7,0.00056712,120]
[321240334,1712009462482,-521.23,0.00056712,120]
[321240335,1712009462492,-601.98,0.00056712,120]
[321240336,1712009462504,-521.91,0.00056712,120]
[321240337,1712009462515,-763.21,0.00056712,120]
[321240338,1712009462524,-500.0,0.00056712,120]
[321240339,1712009462534,-575.65,0.00056712,120]
[321240340,1712009462544,-500.0,0.00056712,120]
[321240341,1712009462554,-480.91,0.00056712,120]
[321240342,1712009462564,-541.69,0.00056712,120]
[321240343,1712009462574,-2967.44,0.00056712,120]
[321240344,1712009462585,-500.0,0.00056712,120]
[321240345,1712009462596,-500.0,0.00056712,120]
[321240346,1712009462607,-1260.46,0.00056712,120]
[321240347,1712009462618,-500.0,0.00056712,120]
[321240348,1712009462628,-1749.5,0.00056712,120]
[321240349,1712009462638,-540.76,0.00056712,120]
[321240350,1712009462649,-1186.18,0.00056712,120]
[321240351,1712009462660,-910.97,0.00056712,120]
[321240352,1712009462670,-500.0,0.00056712,120]
[321240353,1712009462680,-654.57,0.00056712,120]
[321240354,1712009462690,-1734.15,0.00056712,120]
[321240355,1712009462700,-932.52,0.00056712,120]
[321240356,1712009462710,-500.0,0.00056712,120]
[321240357,1712009462720,-500.0,0.00056712,120]
[321240358,1712009462731,-622.78,0.00056712,120]
[321240359,1712009462740,-534.95,0.00056712,120]
[321240360,1712009462753,-1828.04,0.00056712,120]
[321240361,1712009462764,-500.0,0.00056712,120]
[321240362,1712009462774,-644.85,0.00056712,120]
[321240363,1712009462784,-500.0,0.00056712,120]
[321240364,1712009462793,-627.7,0.00056712,120]
[321240365,1712009462803,-500.0,0.00056712,120]
[321240366,1712009462813,-532.88,0.00056712,120]
[321240367,1712009462823,-500.0,0.00056712,120]
[321240368,1712009462832,-500.0,0.00056712,7]
[321240369,1712009462841,-500.0,0.00056712,120]
[321240370,1712009462850,-500.0,0.00056712,120]
[321240371,1712009462861,-500.0,0.00056712,120]
[321240372,1712009462871,-1511.02,0.00056712,120]
[321240373,1712009462881,-633.82,0.00056712,120]
[321240374,1712009462892,-500.0,0.00056712,120]
[321240375,1712009462902,-500.0,0.00056712,120]
[321240376,1712009462913,-539.45,0.00056712,120]
[321240377,1712009462924,-500.0,0.00056712,120]
[321240378,1712009462934,-1184.28,0.00056712,120]
[321240379,1712009462943,-500.0,0.00056712,120]
[321240380,1712009462953,-545.44,0.00056712,120]
[321240381,1712009462963,-3362.52383184,0.00056805,2]
[321240382,1712009462973,-337.84,0.0005681,2]
[321240383,1712009462983,-1300.0,0.000569,20]
[321240384,1712009462994,-1000.0,0.00056931,120]
[321240385,1712009463003,-961.0,0.00056956,15]
[321240386,1712009463013,-961.0,0.00056966,15]
[321240387,1712009463022,-961.0,0.00056976,15]
[321240388,1712009463033,-538.77,0.00056985,120]
[321240389,1712009463043,-500.0,0.00056985,120]
[321240390,1712009463054,-1155.33,0.00056985,120]
[321240391,1712009463064,-1097.78,0.00056985,120]
[321240392,1712009463074,-662.87,0.00056985,120]
[321240393,1712009463085,-543.14,0.00056985,120]
[321240394,1712009463094,-1265.41,0.00056985,120]
[321240395,1712009463104,-500.0,0.00056985,120]
[321240396,1712009463115,-267.3,0.00056985,120]
[321240397,1712009463126,-170.66,0.00056985,120]
[321240398,1712009463135,-1148.89,0.00056985,120]
[321240399,1712009463146,-500.0,0.00056985,120]
[321240400,1712009463155,-517.77,0.00056985,120]
[321240401,1712009463166,-500.0,0.00056985,120]
[321240402,1712009463176,-500.0,0.00056985,120]
[321240403,1712009463187,-500.0,0.00056985,120]
[321240404,1712009463196,-500.0,0.00056985,120]
[321240405,1712009463206,-546.82,0.00056985,120]
[321240406,1712009463216,-527.78,0.00056985,120]
[321240407,1712009463226,-76255.14336188,0.00056986,36]
[321240408,1712009463236,-500.0,0.00056986,120]
[321240409,1712009463246,-500.0,0.00056986,120]
[321240410,1712009463255,-500.0,0.00056986,120]
[321240411,1712009463266,-585.66,0.00056986,120]
[321240412,1712009463276,-500.0,0.00056986,120]
[321240413,1712009463285,-166.86,0.00056986,120]
[321240414,1712009463295,-500.0,0.00056986,120]
[321240415,1712009463305,-500.0,0.00056986,120]
[321240416,1712009463314,-500.0,0.00056986,120]
[321240417,1712009463324,-500.0,0.00056986,120]
[321240418,1712009463334,-275.1,0.00056986,120]
[321240419,1712009463344,-500.0,0.00056986,120]
[321240420,1712009463353,-500.0,0.00056986,120]
[321240421,1712009463364,-500.0,0.00056986,120]
[321240422,1712009463374,-500.0,0.00056986,120]
[321240423,1712009463383,-500.0,0.00056986,120]
[321240424,1712009463393,-451.5,0.00056986,30]
[321240425,1712009463402,-500.0,0.00056986,120]
[321240426,1712009463412,-222.24,0.00056986,120]
[321240427,1712009463422,-500.0,0.00056986,120]
[321240428,1712009463431,-500.0,0.00056986,120]
[321240429,1712009463440,-500.0,0.00056986,120]
[321240430,1712009463449,-551.71,0.00056986,120]
[321240431,1712009463459,-500.0,0.00056986,120]
[321240432,1712009463469,-500.0,0.00056986,120]
[321240433,1712009463479,-500.0,0.00056986,120]
[321240434,1712009463489,-500.0,0.00056986,120]
[321240435,1712009463499,-500.0,0.00056986,120]
[321240436,1712009463511,-500.0,0.00056986,120]
[321240437,1712009463523,-500.0,0.00056986,120]
[321240438,1712009463535,-500.0,0.00056986,120]
[321240439,1712009463545,-500.0,0.00056986,120]
[321240440,1712009463555,-150.0,0.00056986,120]
[321240441,1712009463566,-500.0,0.00056986,120]
[321240442,1712009463577,-500.0,0.00056986,120]
[321240443,1712009463588,-500.0,0.00056986,120]
[321240444,1712009463598,-500.0,0.00056986,120]
[321240445,1712009463608,-426.48,0.00056986,120]
[321240446,1712009463620,-500.0,0.00056986,120]
[321240447,1712009463630,-500.0,0.00056986,120]
[321240448,1712009463641,-349.52,0.00056986,120]
[321240449,1712009463651,-500.0,0.00056986,120]
[321240450,1712009463661,-405.44,0.00056986,120]
[321240451,1712009463671,-500.0,0.00056986,120]
[321240452,1712009463681,-500.0,0.00056986,120]
[321240453,1712009463692,-287.08,0.00056986,120]
[321240454,1712009463702,-500.0,0.00056986,120]
[321240455,1712009463712,-500.0,0.00056986,120]
[321240456,1712009463722,-554.96,0.00056986,120]
[321240457,1712009463732,-500.0,0.00056986,120]
[321240458,1712009463742,-567.46,0.00056986,120]
[321240459,1712009463755,-500.0,0.00056986,120]
[321240460,1712009463765,-2940.4,0.00056986,120]
[321240461,1712009463777,-500.0,0.00056986,120]
[321240462,1712009463788,-9617.67,0.00056986,120]
[321240463,1712009463798,-591.04,0.00056986,120]
[321240464,1712009463807,-500.0,0.00056986,120]
[321240465,1712009463817,-3963.56,0.00056986,120]
[321240466,1712009463828,-500.0,0.00056986,120]
[321240467,1712009463840,-1592.94,0.00056986,120]
[321240468,1712009463850,-1171.94,0.00056986,120]
[321240469,1712009463862,-500.0,0.00056986,120]
[321240470,1712009463872,-519.04,0.00056986,120]
[321240471,1712009463881,-500.0,0.00056986,120]
[321240472,1712009463892,-500.0,0.00056986,120]
[321240473,1712009463901,-500.0,0.00056986,120]
[321240474,1712009463911,-500.0,0.00056986,120]
[321240475,1712009463921,-649.04,0.00056986,120]
[321240476,1712009463930,-500.0,0.00056986,120]
[321240477,1712009463939,-735.74,0.00056986,120]
[321240478,1712009463949,-2396.91,0.00056986,120]
[321240479,1712009463958,-710.69,0.00056986,120]
[321240480,1712009463968,-500.0,0.00056986,120]
[321240481,1712009463977,-5307.53,0.00056986,120]
[321240482,1712009463986,-410.42,0.00056986,120]
[321240483,1712009463996,-509.91,0.00056986,120]
[321240484,1712009464005,-674.12,0.00056986,120]
[321240485,1712009464015,-500.0,0.00056986,120]
[321240486,1712009464025,-7130.05,0.00056986,120]
[321240487,1712009464034,-500.0,0.00056986,120]
[321240488,1712009464044,-784.39,0.00056986,120]
[321240489,1712009464053,-500.0,0.00056986,120]
[321240490,1712009464163,-583.87,0.00056986,120]
[321240491,1712009464174,-683.13,0.00056986,120]
[321240492,1712009464183,-8568.4,0.00056986,120]
[321240493,1712009464193,-500.0,0.00056986,120]
[321240494,1712009464203,-828.92,0.00056986,120]
[321240495,1712009464212,-718.19,0.00056986,120]
[321240496,1712009464222,-500.0,0.00056986,120]
[321240497,1712009464231,-524.83,0.00056986,120]
[321240498,1712009464241,-644.16,0.00056986,21]
[321240499,1712009464251,-1373.74,0.00056986,120]
[321240500,1712009464260,-526.38,0.00056986,120]
[321240501,1712009464270,-594.12,0.00056986,120]
[321240502,1712009464279,-610.54,0.00056986,120]
[321240503,1712009464289,-595.4,0.00056986,120]
[321240504,1712009464299,-500.0,0.00056986,120]
[321240505,1712009464308,-1259.72,0.00056986,120]
[321240506,1712009464318,-500.0,0.00056986,120]
[321240507,1712009464328,-500.0,0.00056986,120]
[321240508,1712009464337,-674.09,0.00056986,120]
[321240509,1712009464346,-500.0,0.00056986,120]
[321240510,1712009464356,-500.0,0.00056986,120]
[321240511,1712009464365,-1198.7,0.00056986,120]
[321240512,1712009464375,-500.0,0.00056986,120]
[321240513,1712009464386,-662.7,0.00056986,120]
[321240514,1712009464396,-521.23,0.00056986,120]
[321240515,1712009464406,-601.98,0.00056986,120]
[321240516,1712009464415,-521.91,0.00056986,120]
[321240517,1712009464425,-763.21,0.00056986,120]
[321240518,1712009464435,-500.0,0.00056986,120]
[321240519,1712009464444,-575.65,0.00056986,120]
[321240520,1712009464454,-160.22,0.00056986,120]
[321240521,1712009464464,-541.69,0.00056986,120]
[321240522,1712009464473,-2967.44,0.00056986,120]
[321240523,1712009464483,-500.0,0.00056986,120]
[321240524,1712009464493,-500.0,0.00056986,120]
[321240525,1712009464502,-1260.46,0.00056986,120]
[321240526,1712009464512,-510.94301834,0.00056986,120]
[321240527,1712009464523,-1749.5,0.00056986,120]
[321240528,1712009464532,-540.76,0.00056986,120]
[321240529,1712009464541,-1186.18,0.00056986,120]
[321240530,1712009464551,-910.97,0.00056986,120]
[321240531,1712009464561,-500.0,0.00056986,120]
[321240532,1712009464570,-654.57,0.00056986,120]
[321240533,1712009464579,-1734.15,0.00056986,120]
[321240534,1712009464590,-932.52,0.00056986,120]
[321240535,1712009464599,-500.0,0.00056986,120]
[321240536,1712009464609,-500.0,0.00056986,120]
[321240537,1712009464619,-622.78,0.00056986,120]
[321240538,1712009464628,-534.95,0.00056986,120]
[321240539,1712009464638,-1828.04,0.00056986,120]
[321240540,1712009464648,-500.0,0.00056986,120]
[321240541,1712009464658,-644.85,0.00056986,120]
[321240542,1712009464667,-500.0,0.00056986,120]
[321240543,1712009464676,-627.7,0.00056986,120]
[321240544,1712009464685,-500.0,0.00056986,120]
[321240545,1712009464695,-532.88,0.00056986,120]
[321240546,1712009464704,-500.0,0.00056986,120]
[321240547,1712009464714,-500.0,0.00056986,7]
[321240548,1712009464724,-500.0,0.00056986,120]
[321240549,1712009464733,-500.0,0.00056986,120]
[321240550,1712009464743,-500.0,0.00056986,120]
[321240551,1712009464756,-1511.02,0.00056986,120]
[321240552,1712009464766,-377.44,0.00056986,120]
[321240553,1712009464775,-500.0,0.00056986,120]
[321240554,1712009464786,-539.45,0.00056986,120]
[321240555,1712009464796,-500.0,0.00056986,120]
[321240556,1712009464805,-1184.28,0.00056986,120]
[321240557,1712009464815,-500.0,0.00056986,120]
[321240558,1712009464827,-545.44,0.00056986,120]
[321240559,1712009464836,-207.86,0.00057,120]
[321240560,1712009464845,-5283.13851962,0.0005704,35]
[321240561,1712009464854,-151.0,0.00057055,2]
[321240562,1712009464864,-538.77,0.00057259,120]
[321240563,1712009464875,-500.0,0.00057259,120]
[321240564,1712009464884,-1155.33,0.00057259,120]
[321240565,1712009464894,-1097.78,0.00057259,120]
[321240566,1712009464904,-662.87,0.00057259,120]
[321240567,1712009464912,-543.14,0.00057259,120]
[321240568,1712009464922,-1265.41,0.00057259,120]
[321240569,1712009464931,-500.0,0.00057259,120]
[321240570,1712009464941,-1148.89,0.00057259,120]
[321240571,1712009464950,-500.0,0.00057259,120]
[321240572,1712009464960,-517.77,0.00057259,120]
[321240573,1712009464969,-500.0,0.00057259,120]
[321240574,1712009464978,-500.0,0.00057259,120]
[321240575,1712009464988,-500.0,0.00057259,120]
[321240576,1712009464997,-500.0,0.00057259,120]
[321240577,1712009465008,-546.82,0.00057259,120]
[321240578,1712009465018,-527.78,0.00057259,120]
[321240579,1712009465027,-523.5,0.0005726,120]
[321240580,1712009465036,-248.98,0.0005726,120]
[321240581,1712009465046,-500.0,0.0005726,120]
[321240582,1712009465055,-500.0,0.0005726,120]
[321240583,1712009465065,-500.0,0.0005726,120]
[321240584,1712009465074,-500.0,0.0005726,120]
[321240585,1712009465084,-186.56,0.0005726,120]
[321240586,1712009465094,-500.0,0.0005726,120]
[321240587,1712009465103,-500.0,0.0005726,120]
[321240588,1712009465113,-474.3,0.0005726,120]
[321240589,1712009465123,-500.0,0.0005726,120]
[321240590,1712009465133,-500.0,0.0005726,120]
[321240591,1712009465142,-500.0,0.0005726,120]
[321240592,1712009465152,-500.0,0.0005726,120]
[321240593,1712009465161,-500.0,0.0005726,120]
[321240594,1712009465170,-360.22,0.0005726,120]
[321240595,1712009465180,-500.0,0.0005726,120]
[321240596,1712009465190,-551.71,0.0005726,120]
[321240597,1712009465200,-500.0,0.0005726,120]
[321240598,1712009465210,-500.0,0.0005726,120]
[321240599,1712009465220,-500.0,0.0005726,120]
[321240600,1712009465229,-420.84813413,0.0005726,120]
[321240601,1712009465239,-500.0,0.0005726,120]
[321240602,1712009465248,-500.0,0.0005726,120]
[321240603,1712009465258,-500.0,0.0005726,120]
[321240604,1712009465268,-500.0,0.0005726,120]
[321240605,1712009465278,-500.0,0.0005726,120]
[321240606,1712009465288,-150.0,0.0005726,120]
[321240607,1712009465298,-500.0,0.0005726,120]
[321240608,1712009465307,-500.0,0.0005726,120]
[321240609,1712009465317,-500.0,0.0005726,120]
[321240610,1712009465327,-500.0,0.0005726,120]
[321240611,1712009465336,-383.94,0.0005726,120]
[321240612,1712009465346,-500.0,0.0005726,120]
[321240613,1712009465356,-307.42,0.0005726,120]
[321240614,1712009465366,-215.04,0.0005726,120]
[321240615,1712009465377,-224.08,0.0005726,120]
[321240616,1712009465387,-500.0,0.0005726,120]
[321240617,1712009465397,-500.0,0.0005726,120]
[321240618,1712009465407,-500.0,0.0005726,120]
[321240619,1712009465416,-567.46,0.0005726,120]
[321240620,1712009465426,-592.5,0.0005726,120]
[321240621,1712009465435,-2940.4,0.0005726,120]
[321240622,1712009465445,-500.0,0.0005726,120]
[321240623,1712009465455,-9617.67,0.0005726,120]
[321240624,1712009465465,-500.0,0.0005726,120]
[321240625,1712009465474,-3963.56,0.0005726,120]
[321240626,1712009465484,-500.0,0.0005726,120]
[321240627,1712009465494,-1592.94,0.0005726,120]
[321240628,1712009465503,-1171.94,0.0005726,120]
[321240629,1712009465514,-500.0,0.0005726,120]
[321240630,1712009465524,-519.04,0.0005726,120]
[321240631,1712009465533,-500.0,0.0005726,120]
[321240632,1712009465543,-500.0,0.0005726,120]
[321240633,1712009465553,-500.0,0.0005726,120]
[321240634,1712009465562,-500.0,0.0005726,120]
[321240635,1712009465572,-649.04,0.0005726,120]
[321240636,1712009465583,-500.0,0.0005726,120]
[321240637,1712009465592,-735.74,0.0005726,120]
[321240638,1712009465602,-2396.91,0.0005726,120]
[321240639,1712009465612,-710.69,0.0005726,120]
[321240640,1712009465622,-500.0,0.0005726,120]
[321240641,1712009465632,-5307.53,0.0005726,120]
[321240642,1712009465642,-509.91,0.0005726,120]
[321240643,1712009465652,-674.12,0.0005726,120]
[321240644,1712009465662,-500.0,0.0005726,120]
[321240645,1712009465671,-7130.05,0.0005726,120]
[321240646,1712009465681,-500.0,0.0005726,120]
[321240647,1712009465691,-784.39,0.0005726,120]
[321240648,1712009465701,-500.0,0.0005726,120]